[Event "*** Titled Tuesday Blitz"]
[Site "Chess.com"]
[Date "2020.10.27"]
[Round "7"]
[White "midedu"]
[Black "MustafayevFarid2004"]
[Result "0-1"]
[WhiteElo "2026"]
[BlackElo "2474"]
[TimeControl "180+1"]
[EndTime "11:18:28 PDT"]
[Termination "MustafayevFarid2004 won on time"]

1. e4 {[%clk 0:03:00.9]} 1... c6 {[%clk 0:02:57.6]} 2. d4 {[%clk 0:02:58.4]}
2... d5 {[%clk 0:02:57.4]} 3. Nd2 {[%clk 0:02:58.9]} 3... dxe4 {[%clk
0:02:55.8]} 4. Nxe4 {[%clk 0:02:58.9]} 4... Bf5 {[%clk 0:02:56.2]} 5. Ng3 {[%clk
0:02:58.9]} 5... Bg6 {[%clk 0:02:56.4]} 6. Nf3 {[%clk 0:02:59.4]} 6... Nd7
{[%clk 0:02:56.8]} 7. Bc4 {[%clk 0:02:57.3]} 7... e6 {[%clk 0:02:56.4]} 8. Qe2
{[%clk 0:02:56.2]} 8... Ngf6 {[%clk 0:02:55.4]} 9. O-O {[%clk 0:02:55.2]} 9...
Be7 {[%clk 0:02:55.3]} 10. Re1 {[%clk 0:02:45.3]} 10... O-O {[%clk 0:02:52.5]}
11. Bxe6 {[%clk 0:02:26.1]} 11... Bb4 {[%clk 0:02:12.3]} 12. c3 {[%clk
0:02:22.8]} 12... Re8 {[%clk 0:02:12.5]} 13. cxb4 {[%clk 0:02:18.9]} 13... Rxe6
{[%clk 0:02:11.7]} 14. Be3 {[%clk 0:02:15.1]} 14... Nd5 {[%clk 0:02:09.2]} 15.
Qd2 {[%clk 0:02:13.6]} 15... Qb6 {[%clk 0:02:07.3]} 16. a3 {[%clk 0:02:12.2]}
16... Rae8 {[%clk 0:02:05.1]} 17. Rac1 {[%clk 0:02:02.5]} 17... h6 {[%clk
0:01:57.2]} 18. Nh4 {[%clk 0:01:35.9]} 18... Bh7 {[%clk 0:01:48.4]} 19. Nhf5
{[%clk 0:01:30]} 19... Qd8 {[%clk 0:01:48.4]} 20. Bxh6 {[%clk 0:00:53.1]} 20...
Rxe1+ {[%clk 0:01:41.1]} 21. Rxe1 {[%clk 0:00:52.4]} 21... Rxe1+ {[%clk
0:01:42]} 22. Qxe1 {[%clk 0:00:52.1]} 22... gxh6 {[%clk 0:01:42.7]} 23. Nxh6+
{[%clk 0:00:51.5]} 23... Kg7 {[%clk 0:01:42.5]} 24. Nhf5+ {[%clk 0:00:51]} 24...
Kf8 {[%clk 0:01:33.6]} 25. Nd6 {[%clk 0:00:35.4]} 25... Qb8 {[%clk 0:01:30.9]}
26. Nc4 {[%clk 0:00:31.5]} 26... Qf4 {[%clk 0:01:28.1]} 27. Qd2 {[%clk
0:00:20.5]} 27... Qxd2 {[%clk 0:01:23.9]} 28. Nxd2 {[%clk 0:00:20.2]} 28... Ke7
{[%clk 0:01:20.2]} 29. Nge4 {[%clk 0:00:19.8]} 29... Nf8 {[%clk 0:01:18]} 30. f3
{[%clk 0:00:19.4]} 30... Ne6 {[%clk 0:01:17.8]} 31. Nb3 {[%clk 0:00:16.5]} 31...
Bxe4 {[%clk 0:01:18.2]} 32. fxe4 {[%clk 0:00:16.3]} 32... Ne3 {[%clk 0:01:17.4]}
33. Kf2 {[%clk 0:00:10.5]} 33... Nd1+ {[%clk 0:01:17.1]} 34. Kf3 {[%clk
0:00:10.2]} 34... Nxb2 {[%clk 0:01:18]} 35. a4 {[%clk 0:00:09.2]} 35... Nd3
{[%clk 0:01:17.7]} 36. b5 {[%clk 0:00:06.7]} 36... Ne1+ {[%clk 0:01:17.7]} 37.
Ke3 {[%clk 0:00:01.9]} 37... Nxg2+ {[%clk 0:01:17.3]} 38. Kd3 {[%clk 0:00:02.2]}
38... cxb5 {[%clk 0:01:15.9]} 39. axb5 {[%clk 0:00:01.7]} 39... Ne1+ {[%clk
0:01:16.6]} 40. Kc4 {[%clk 0:00:01.6]} 40... Nf3 {[%clk 0:01:16.5]} 41. d5
{[%clk 0:00:01.3]} 41... Ne5+ {[%clk 0:01:17]} 42. Kb4 {[%clk 0:00:01.4]} 42...
Ng5 {[%clk 0:01:15.5]} 43. Nd2 {[%clk 0:00:01.2]} 43... Ngf3 {[%clk 0:01:15.2]}
0-1

[Event "*** Titled Tuesday Blitz"]
[Site "Chess.com"]
[Date "2020.10.27"]
[Round "7"]
[White "MoreChessJulia"]
[Black "Qvalda"]
[Result "0-1"]
[WhiteElo "2050"]
[BlackElo "2386"]
[TimeControl "180+1"]
[EndTime "11:18:29 PDT"]
[Termination "Qvalda won by resignation"]

1. d4 {[%clk 0:03:00]} 1... g6 {[%clk 0:02:53]} 2. h4 {[%clk 0:02:58.6]} 2...
Bg7 {[%clk 0:02:53.9]} 3. h5 {[%clk 0:02:58.3]} 3... c5 {[%clk 0:02:50.5]} 4. c3
{[%clk 0:02:55.8]} 4... d5 {[%clk 0:02:38.9]} 5. Nf3 {[%clk 0:02:50.5]} 5... Bg4
{[%clk 0:02:33.7]} 6. hxg6 {[%clk 0:02:47.6]} 6... hxg6 {[%clk 0:02:31.4]} 7.
Rxh8 {[%clk 0:02:46.5]} 7... Bxh8 {[%clk 0:02:32.3]} 8. Bf4 {[%clk 0:02:40.6]}
8... Bxf3 {[%clk 0:02:28]} 9. gxf3 {[%clk 0:02:39.6]} 9... Nc6 {[%clk
0:02:28.1]} 10. e3 {[%clk 0:02:38.9]} 10... cxd4 {[%clk 0:02:25.2]} 11. cxd4
{[%clk 0:02:37.8]} 11... Qb6 {[%clk 0:02:24.1]} 12. Qd2 {[%clk 0:02:36.2]} 12...
e6 {[%clk 0:02:14.6]} 13. Nc3 {[%clk 0:02:35.4]} 13... a6 {[%clk 0:02:06.7]} 14.
O-O-O {[%clk 0:02:32.5]} 14... Nf6 {[%clk 0:01:54.5]} 15. Kb1 {[%clk 0:02:31.5]}
15... Nd7 {[%clk 0:01:53.3]} 16. Rc1 {[%clk 0:02:21.8]} 16... Bf6 {[%clk
0:01:48.1]} 17. Na4 {[%clk 0:02:20.2]} 17... Qa7 {[%clk 0:01:40.6]} 18. Bd6
{[%clk 0:02:14.5]} 18... Be7 {[%clk 0:01:36.6]} 19. Bxe7 {[%clk 0:02:11.9]}
19... Kxe7 {[%clk 0:01:37.5]} 20. f4 {[%clk 0:02:11.9]} 20... Qb8 {[%clk
0:01:27.1]} 21. Nc5 {[%clk 0:01:51.3]} 21... Nxc5 {[%clk 0:01:25.4]} 22. Rxc5
{[%clk 0:01:50.3]} 22... Qd6 {[%clk 0:01:19.9]} 23. Qc3 {[%clk 0:01:46.9]} 23...
Rh8 {[%clk 0:01:17.7]} 24. Bxa6 {[%clk 0:01:43.3]} 24... Rh1+ {[%clk 0:01:16.1]}
25. Kc2 {[%clk 0:01:43.1]} 25... Rh2 {[%clk 0:01:11]} 26. Bxb7 {[%clk
0:01:42.3]} 26... Rxf2+ {[%clk 0:01:09.6]} 27. Kb3 {[%clk 0:01:41.7]} 27... Nd8
{[%clk 0:00:42.4]} 28. Rc7+ {[%clk 0:01:36]} 28... Kf6 {[%clk 0:00:41.8]} 29.
Qc5 {[%clk 0:01:29.5]} 29... Nxb7 {[%clk 0:00:37.4]} 30. Rxb7 {[%clk 0:01:25.7]}
30... Qa6 {[%clk 0:00:31]} 31. Qe7+ {[%clk 0:01:22.9]} 31... Kf5 {[%clk
0:00:30.7]} 32. Qxf7+ {[%clk 0:01:22.6]} 32... Ke4 {[%clk 0:00:29.7]} 33. Qxg6+
{[%clk 0:01:20.4]} 33... Kxe3 {[%clk 0:00:27.7]} 34. Rb4 {[%clk 0:01:06.2]}
34... Qc6 {[%clk 0:00:16.8]} 35. Qf6 {[%clk 0:01:00.7]} 35... Rf3 {[%clk
0:00:12.8]} 36. Qe5+ {[%clk 0:00:55]} 36... Kd2+ {[%clk 0:00:10.1]} 0-1

[Event "*** Titled Tuesday Blitz"]
[Site "Chess.com"]
[Date "2020.10.27"]
[Round "7"]
[White "Kaslask"]
[Black "PawnEatingZombie"]
[Result "1-0"]
[WhiteElo "2354"]
[BlackElo "2180"]
[TimeControl "180+1"]
[EndTime "11:18:30 PDT"]
[Termination "Kaslask won on time"]

1. d4 {[%clk 0:03:00.9]} 1... d5 {[%clk 0:02:59.6]} 2. c4 {[%clk 0:03:00.3]}
2... e6 {[%clk 0:02:59.9]} 3. Nc3 {[%clk 0:02:59.8]} 3... Bb4 {[%clk 0:03:00.4]}
4. cxd5 {[%clk 0:02:58.1]} 4... exd5 {[%clk 0:03:00]} 5. Bf4 {[%clk 0:02:58.4]}
5... c6 {[%clk 0:02:59.9]} 6. e3 {[%clk 0:02:58.2]} 6... Ne7 {[%clk 0:03:00.1]}
7. Bd3 {[%clk 0:02:57.5]} 7... Bf5 {[%clk 0:03:00.5]} 8. Nf3 {[%clk 0:02:53.2]}
8... Bxd3 {[%clk 0:02:58.4]} 9. Qxd3 {[%clk 0:02:52.4]} 9... O-O {[%clk
0:02:58.4]} 10. O-O {[%clk 0:02:52]} 10... Ng6 {[%clk 0:02:58.4]} 11. Bg3 {[%clk
0:02:51.2]} 11... Nd7 {[%clk 0:02:57.7]} 12. a3 {[%clk 0:02:49.9]} 12... Be7
{[%clk 0:02:57.5]} 13. b4 {[%clk 0:02:49.5]} 13... a6 {[%clk 0:02:44.2]} 14.
Rab1 {[%clk 0:02:46.3]} 14... b5 {[%clk 0:02:30.4]} 15. Nd2 {[%clk 0:02:39.3]}
15... a5 {[%clk 0:02:08.1]} 16. e4 {[%clk 0:02:26.2]} 16... axb4 {[%clk
0:02:07.3]} 17. axb4 {[%clk 0:02:25.3]} 17... Nb6 {[%clk 0:02:02.8]} 18. e5
{[%clk 0:02:14.8]} 18... Ra3 {[%clk 0:01:53.3]} 19. f4 {[%clk 0:02:12.2]} 19...
f5 {[%clk 0:01:45.8]} 20. exf6 {[%clk 0:02:05.1]} 20... Bxf6 {[%clk 0:01:39.9]}
21. f5 {[%clk 0:02:03.9]} 21... Ne7 {[%clk 0:01:34]} 22. Nb3 {[%clk 0:01:52.6]}
22... Re8 {[%clk 0:00:51.2]} 23. Be5 {[%clk 0:01:48.7]} 23... Nc4 {[%clk
0:00:35.3]} 24. Qg3 {[%clk 0:01:40.7]} 24... Kh8 {[%clk 0:00:31.8]} 25. Rf4
{[%clk 0:01:34.2]} 25... Ng8 {[%clk 0:00:30.2]} 26. Rh4 {[%clk 0:01:29.7]} 26...
Nxe5 {[%clk 0:00:23.2]} 27. Rh5 {[%clk 0:01:15.6]} 27... Nf7 {[%clk 0:00:18.9]}
28. Qg6 {[%clk 0:01:15.1]} 28... Nfh6 {[%clk 0:00:17.3]} 29. Qg3 {[%clk
0:01:13.6]} 29... Qb8 {[%clk 0:00:15.4]} 30. Qf3 {[%clk 0:01:12.3]} 30... Qd6
{[%clk 0:00:14.2]} 31. Nd2 {[%clk 0:01:08]} 31... Qe7 {[%clk 0:00:12.4]} 32. Nf1
{[%clk 0:01:06.8]} 32... Raa8 {[%clk 0:00:08.2]} 33. Rh3 {[%clk 0:01:04.5]}
33... Qd7 {[%clk 0:00:07.7]} 34. g4 {[%clk 0:01:02.5]} 34... Bg5 {[%clk
0:00:06.4]} 35. Rh5 {[%clk 0:01:00.6]} 35... Qe7 {[%clk 0:00:06]} 36. h4 {[%clk
0:00:59.6]} 36... Be3+ {[%clk 0:00:04.6]} 37. Kh1 {[%clk 0:00:57.8]} 37... Ra3
{[%clk 0:00:03.2]} 38. Nd1 {[%clk 0:00:53.3]} 38... Qe4 {[%clk 0:00:02.2]} 39.
Qxe4 {[%clk 0:00:51.7]} 39... Rxe4 {[%clk 0:00:02.2]} 40. Ndxe3 {[%clk 0:00:50]}
1-0

[Event "*** Titled Tuesday Blitz"]
[Site "Chess.com"]
[Date "2020.10.27"]
[Round "7"]
[White "Cambek64"]
[Black "canary2016"]
[Result "1-0"]
[WhiteElo "2324"]
[BlackElo "1949"]
[TimeControl "180+1"]
[EndTime "11:18:32 PDT"]
[Termination "Cambek64 won by resignation"]

1. e4 {[%clk 0:02:56.5]} 1... c5 {[%clk 0:02:57.7]} 2. Nf3 {[%clk 0:02:54.8]}
2... d6 {[%clk 0:02:57.9]} 3. c3 {[%clk 0:02:52.6]} 3... Nf6 {[%clk 0:02:55.9]}
4. Bd3 {[%clk 0:02:50.5]} 4... e5 {[%clk 0:02:45.6]} 5. O-O {[%clk 0:02:48.4]}
5... Be7 {[%clk 0:02:43.8]} 6. h3 {[%clk 0:02:47]} 6... O-O {[%clk 0:02:43.2]}
7. Re1 {[%clk 0:02:47.4]} 7... Be6 {[%clk 0:02:41.7]} 8. Bf1 {[%clk 0:02:47]}
8... Nc6 {[%clk 0:02:38.8]} 9. d4 {[%clk 0:02:46.1]} 9... cxd4 {[%clk
0:02:37.8]} 10. cxd4 {[%clk 0:02:45.3]} 10... exd4 {[%clk 0:02:36.5]} 11. Nxd4
{[%clk 0:02:44.4]} 11... Nxd4 {[%clk 0:02:36]} 12. Qxd4 {[%clk 0:02:43.9]} 12...
Qc7 {[%clk 0:02:35.8]} 13. Nc3 {[%clk 0:02:42.6]} 13... Rac8 {[%clk 0:02:34.4]}
14. Qxa7 {[%clk 0:02:38.3]} 14... Rfd8 {[%clk 0:02:19]} 15. Be3 {[%clk
0:01:46.9]} 15... Qc6 {[%clk 0:02:12.5]} 16. Bb5 {[%clk 0:01:42]} 16... Qc7
{[%clk 0:01:50.2]} 17. Bb6 {[%clk 0:01:38.5]} 17... Qb8 {[%clk 0:01:48.6]} 18.
Qxb8 {[%clk 0:01:37.6]} 18... Rxb8 {[%clk 0:01:48.7]} 19. Bxd8 {[%clk
0:01:37.7]} 19... Rxd8 {[%clk 0:01:48.4]} 20. a4 {[%clk 0:01:37.6]} 20... d5
{[%clk 0:01:45.7]} 21. Rad1 {[%clk 0:01:37.4]} 21... dxe4 {[%clk 0:01:44]} 22.
Rxd8+ {[%clk 0:01:36]} 22... Bxd8 {[%clk 0:01:44.1]} 23. Nxe4 {[%clk 0:01:36.2]}
23... Nxe4 {[%clk 0:01:41.6]} 24. Rxe4 {[%clk 0:01:32.8]} 24... Bf6 {[%clk
0:01:41.1]} 25. Re2 {[%clk 0:01:31.9]} 25... g6 {[%clk 0:01:38.9]} 26. f3 {[%clk
0:01:32.2]} 26... Kg7 {[%clk 0:01:38.1]} 27. Kf2 {[%clk 0:01:32.6]} 27... Bd4+
{[%clk 0:01:36.4]} 28. Ke1 {[%clk 0:01:29.5]} 28... b6 {[%clk 0:01:36.2]} 29.
Kd1 {[%clk 0:01:29.4]} 29... Bb3+ {[%clk 0:01:34.4]} 30. Kc1 {[%clk 0:01:28.9]}
30... Be6 {[%clk 0:01:33.1]} 31. Kc2 {[%clk 0:01:28]} 31... Bf5+ {[%clk
0:01:32.4]} 32. Bd3 {[%clk 0:01:28.3]} 32... Be6 {[%clk 0:01:31.7]} 33. b3
{[%clk 0:01:28.3]} 33... Bd7 {[%clk 0:01:26]} 34. g4 {[%clk 0:01:25.8]} 34...
Be6 {[%clk 0:01:25.4]} 35. Bc4 {[%clk 0:01:26.1]} 35... Bxc4 {[%clk 0:01:17.4]}
36. bxc4 {[%clk 0:01:25]} 36... Kf6 {[%clk 0:01:16.2]} 37. f4 {[%clk 0:01:20.8]}
37... Bc5 {[%clk 0:01:14.3]} 38. Kd3 {[%clk 0:01:20.7]} 38... h5 {[%clk
0:01:11.5]} 39. Ke4 {[%clk 0:01:20.7]} 39... hxg4 {[%clk 0:01:10.9]} 40. hxg4
{[%clk 0:01:21.2]} 40... Ke6 {[%clk 0:01:08.5]} 41. Ra2 {[%clk 0:01:19.9]} 41...
f5+ {[%clk 0:01:07.7]} 42. gxf5+ {[%clk 0:01:20.5]} 42... gxf5+ {[%clk 0:01:08]}
43. Kf3 {[%clk 0:01:20.6]} 43... Kd6 {[%clk 0:01:05.9]} 44. a5 {[%clk
0:01:20.3]} 44... bxa5 {[%clk 0:01:05.2]} 45. Rxa5 {[%clk 0:01:20.5]} 45... Kc6
{[%clk 0:01:00]} 46. Rb5 {[%clk 0:01:17.5]} 46... Kd6 {[%clk 0:00:58.2]} 47. Kg3
{[%clk 0:01:17.6]} 47... Kc6 {[%clk 0:00:57.5]} 48. Kh4 {[%clk 0:01:18]} 48...
Be7+ {[%clk 0:00:48]} 49. Kh5 {[%clk 0:01:17.1]} 49... Kd6 {[%clk 0:00:33.6]}
50. Kg6 {[%clk 0:01:16.4]} 50... Ke6 {[%clk 0:00:30.4]} 51. Re5+ {[%clk
0:01:16.9]} 51... Kd6 {[%clk 0:00:29.5]} 52. Rxe7 {[%clk 0:01:17.6]} 52... Kxe7
{[%clk 0:00:29.4]} 53. Kxf5 {[%clk 0:01:18.2]} 53... Kd6 {[%clk 0:00:29.6]} 54.
Kg6 {[%clk 0:01:18.8]} 54... Kc5 {[%clk 0:00:29.8]} 55. f5 {[%clk 0:01:19.4]}
55... Kxc4 {[%clk 0:00:30]} 56. f6 {[%clk 0:01:20.1]} 56... Kd5 {[%clk
0:00:30.7]} 57. f7 {[%clk 0:01:20.7]} 57... Ke6 {[%clk 0:00:31.1]} 58. f8=Q
{[%clk 0:01:20.9]} 58... Ke5 {[%clk 0:00:31.3]} 59. Qf7 {[%clk 0:01:20.7]} 1-0

[Event "*** Titled Tuesday Blitz"]
[Site "Chess.com"]
[Date "2020.10.27"]
[Round "7"]
[White "beto-betun"]
[Black "AsaHoffmann"]
[Result "0-1"]
[WhiteElo "2198"]
[BlackElo "2357"]
[TimeControl "180+1"]
[EndTime "11:18:42 PDT"]
[Termination "AsaHoffmann won by resignation"]

1. d4 {[%clk 0:03:00.7]} 1... Nf6 {[%clk 0:02:54.2]} 2. Nf3 {[%clk 0:02:54.4]}
2... d6 {[%clk 0:02:48.9]} 3. g3 {[%clk 0:02:53]} 3... c6 {[%clk 0:02:48]} 4.
Bg2 {[%clk 0:02:52.3]} 4... Bf5 {[%clk 0:02:47.2]} 5. O-O {[%clk 0:02:52.1]}
5... Nbd7 {[%clk 0:02:45.2]} 6. c4 {[%clk 0:02:51.7]} 6... h6 {[%clk 0:02:44.9]}
7. b3 {[%clk 0:02:49.5]} 7... e5 {[%clk 0:02:44.6]} 8. dxe5 {[%clk 0:02:46]}
8... dxe5 {[%clk 0:02:44.5]} 9. Bb2 {[%clk 0:02:41.2]} 9... Qc7 {[%clk 0:02:44]}
10. Nc3 {[%clk 0:02:32.3]} 10... a5 {[%clk 0:02:42.2]} 11. Nh4 {[%clk
0:02:24.3]} 11... Bh7 {[%clk 0:02:41.5]} 12. e4 {[%clk 0:02:20.4]} 12... Bc5
{[%clk 0:02:39.6]} 13. Qe2 {[%clk 0:02:14.4]} 13... O-O {[%clk 0:02:37.5]} 14.
a3 {[%clk 0:02:05.6]} 14... Bd4 {[%clk 0:02:35.7]} 15. Nd1 {[%clk 0:01:45.5]}
15... Nc5 {[%clk 0:02:34.7]} 16. b4 {[%clk 0:01:20.5]} 16... axb4 {[%clk
0:02:34]} 17. axb4 {[%clk 0:01:21.2]} 17... Rxa1 {[%clk 0:02:32.8]} 18. Bxa1
{[%clk 0:01:18.8]} 18... Nb3 {[%clk 0:02:26.8]} 19. Bxd4 {[%clk 0:01:12.9]}
19... Nxd4 {[%clk 0:02:26.1]} 20. Qb2 {[%clk 0:01:07.2]} 20... Nxe4 {[%clk
0:02:23.1]} 21. Ne3 {[%clk 0:01:00.1]} 21... Nd6 {[%clk 0:02:16]} 22. c5 {[%clk
0:00:52.8]} 22... N6b5 {[%clk 0:02:14.8]} 23. Nc4 {[%clk 0:00:44]} 23... Re8
{[%clk 0:02:06.8]} 24. Nf3 {[%clk 0:00:41]} 24... Nxf3+ {[%clk 0:01:57.6]} 25.
Bxf3 {[%clk 0:00:41.8]} 25... e4 {[%clk 0:01:53.7]} 26. Re1 {[%clk 0:00:38.8]}
26... Bf5 {[%clk 0:01:46.8]} 27. Bg2 {[%clk 0:00:38]} 27... Qd7 {[%clk
0:01:43.9]} 28. Ne3 {[%clk 0:00:37.1]} 28... Bh3 {[%clk 0:01:37.7]} 29. Rd1
{[%clk 0:00:36]} 29... Qe6 {[%clk 0:01:34.9]} 30. Qd2 {[%clk 0:00:23.6]} 30...
Bxg2 {[%clk 0:01:33]} 31. Kxg2 {[%clk 0:00:23.4]} 31... Qb3 {[%clk 0:01:26.1]}
32. Qd7 {[%clk 0:00:18]} 32... Rf8 {[%clk 0:01:25.8]} 33. Qxb7 {[%clk 0:00:16]}
33... Qxb4 {[%clk 0:01:23.9]} 34. Rd7 {[%clk 0:00:14.5]} 34... Qxc5 {[%clk
0:01:20.6]} 35. Ng4 {[%clk 0:00:13.3]} 35... Nd4 {[%clk 0:01:13.8]} 36. Ne3
{[%clk 0:00:10.8]} 36... Ne6 {[%clk 0:01:11.1]} 37. h4 {[%clk 0:00:10.2]} 37...
Qe5 {[%clk 0:01:04.2]} 38. Re7 {[%clk 0:00:08.8]} 38... Qd6 {[%clk 0:01:03.4]}
39. Nf5 {[%clk 0:00:08.1]} 39... Qd5 {[%clk 0:00:59.5]} 40. Ne3 {[%clk
0:00:03.8]} 40... Qc5 {[%clk 0:00:58.1]} 41. Nf5 {[%clk 0:00:01.5]} 41... Qxf5
{[%clk 0:00:56.9]} 0-1

[Event "*** Titled Tuesday Blitz"]
[Site "Chess.com"]
[Date "2020.10.27"]
[Round "7"]
[White "druskacik"]
[Black "enriquetejedor"]
[Result "1-0"]
[WhiteElo "2618"]
[BlackElo "2479"]
[TimeControl "180+1"]
[EndTime "11:18:44 PDT"]
[Termination "druskacik won on time"]

1. d4 {[%clk 0:02:36.7]} 1... Nf6 {[%clk 0:02:42.2]} 2. Nf3 {[%clk 0:02:37.6]}
2... d5 {[%clk 0:02:37.1]} 3. g3 {[%clk 0:02:38.5]} 3... Bg4 {[%clk 0:02:35.5]}
4. Bg2 {[%clk 0:02:39.4]} 4... Bxf3 {[%clk 0:02:32.6]} 5. Bxf3 {[%clk
0:02:33.4]} 5... Nc6 {[%clk 0:02:33.5]} 6. c3 {[%clk 0:02:32.7]} 6... e5 {[%clk
0:02:31.9]} 7. e3 {[%clk 0:02:32.1]} 7... exd4 {[%clk 0:02:30.8]} 8. exd4 {[%clk
0:02:31.9]} 8... h6 {[%clk 0:02:26.7]} 9. h4 {[%clk 0:02:30.2]} 9... Bd6 {[%clk
0:02:25]} 10. Kf1 {[%clk 0:02:30.1]} 10... O-O {[%clk 0:02:03.7]} 11. Kg2 {[%clk
0:02:31]} 11... Re8 {[%clk 0:01:55.8]} 12. Nd2 {[%clk 0:02:18.6]} 12... Ne7
{[%clk 0:01:44.2]} 13. Nf1 {[%clk 0:02:18.2]} 13... c6 {[%clk 0:01:43.5]} 14.
Ne3 {[%clk 0:02:12.6]} 14... Qd7 {[%clk 0:01:43.5]} 15. a4 {[%clk 0:02:11.1]}
15... Nf5 {[%clk 0:01:42.9]} 16. Qd3 {[%clk 0:02:09.8]} 16... Ne4 {[%clk
0:01:40.3]} 17. Ng4 {[%clk 0:02:03.9]} 17... Re7 {[%clk 0:01:19.8]} 18. Be3
{[%clk 0:02:02.9]} 18... h5 {[%clk 0:01:13]} 19. Ne5 {[%clk 0:02:00.6]} 19...
Bxe5 {[%clk 0:01:06.4]} 20. dxe5 {[%clk 0:02:01.5]} 20... Rxe5 {[%clk
0:01:06.1]} 21. Bf4 {[%clk 0:02:00.4]} 21... Re6 {[%clk 0:00:49.2]} 22. Bxh5
{[%clk 0:02:00]} 22... Nfd6 {[%clk 0:00:24.9]} 23. Bg4 {[%clk 0:01:56.5]} 23...
f5 {[%clk 0:00:16.5]} 24. Bf3 {[%clk 0:01:56.6]} 24... Rae8 {[%clk 0:00:15.1]}
25. h5 {[%clk 0:01:55.8]} 25... Nf7 {[%clk 0:00:14.4]} 26. a5 {[%clk 0:01:52.4]}
26... R6e7 {[%clk 0:00:13.4]} 27. Qd4 {[%clk 0:01:50.4]} 27... c5 {[%clk
0:00:11.9]} 28. Qd3 {[%clk 0:01:49.9]} 28... Rd8 {[%clk 0:00:08.1]} 29. Rh4
{[%clk 0:01:47.3]} 29... d4 {[%clk 0:00:06.9]} 30. c4 {[%clk 0:01:41.5]} 30...
Nf6 {[%clk 0:00:02.8]} 31. Rah1 {[%clk 0:01:39.6]} 31... Rde8 {[%clk 0:00:02.6]}
32. h6 {[%clk 0:01:39.6]} 32... g5 {[%clk 0:00:02.8]} 33. h7+ {[%clk 0:01:30.2]}
33... Kh8 {[%clk 0:00:02.5]} 34. Bd2 {[%clk 0:01:27.5]} 34... gxh4 {[%clk
0:00:02.3]} 35. Rxh4 {[%clk 0:01:28.4]} 35... Ne5 {[%clk 0:00:02.7]} 36. Qa3
{[%clk 0:01:25.2]} 36... Nxf3 {[%clk 0:00:02.9]} 37. Qxf3 {[%clk 0:01:26.1]}
37... Qc6 {[%clk 0:00:02.5]} 38. Bg5 {[%clk 0:01:20.9]} 38... Qxf3+ {[%clk
0:00:01.5]} 39. Kxf3 {[%clk 0:01:21.8]} 39... Re6 {[%clk 0:00:02]} 40. b4 {[%clk
0:01:12.9]} 40... Ne4 {[%clk 0:00:02.1]} 41. Bf4 {[%clk 0:01:08.4]} 41... cxb4
{[%clk 0:00:02]} 42. Rh5 {[%clk 0:01:08.7]} 42... Rf6 {[%clk 0:00:02]} 43. Rh1
{[%clk 0:01:08.4]} 43... b3 {[%clk 0:00:02]} 44. Rb1 {[%clk 0:01:08.7]} 44...
Nc5 {[%clk 0:00:02.4]} 45. Bg5 {[%clk 0:01:02.8]} 1-0

[Event "*** Titled Tuesday Blitz"]
[Site "Chess.com"]
[Date "2020.10.27"]
[Round "7"]
[White "sara_khm"]
[Black "DinaBelenkaya"]
[Result "0-1"]
[WhiteElo "2572"]
[BlackElo "2375"]
[TimeControl "180+1"]
[EndTime "11:18:44 PDT"]
[Termination "DinaBelenkaya won on time"]

1. d4 {[%clk 0:03:00.9]} 1... d5 {[%clk 0:02:59.2]} 2. c4 {[%clk 0:03:00.7]}
2... dxc4 {[%clk 0:02:59]} 3. Nf3 {[%clk 0:02:59.8]} 3... Nf6 {[%clk 0:02:59.1]}
4. e3 {[%clk 0:03:00.2]} 4... a6 {[%clk 0:02:59.5]} 5. Bxc4 {[%clk 0:02:59.4]}
5... c5 {[%clk 0:03:00.1]} 6. Bb3 {[%clk 0:02:59.4]} 6... e6 {[%clk 0:02:58.8]}
7. Nc3 {[%clk 0:02:48.2]} 7... b5 {[%clk 0:02:57.6]} 8. a4 {[%clk 0:02:46.1]}
8... b4 {[%clk 0:02:57.5]} 9. Ne2 {[%clk 0:02:43.4]} 9... Bb7 {[%clk 0:02:57.6]}
10. dxc5 {[%clk 0:02:40.2]} 10... Qxd1+ {[%clk 0:02:50.7]} 11. Bxd1 {[%clk
0:02:36.7]} 11... Nbd7 {[%clk 0:02:48.8]} 12. c6 {[%clk 0:02:24.9]} 12... Bxc6
{[%clk 0:02:48.4]} 13. Ned4 {[%clk 0:02:22.9]} 13... Bd5 {[%clk 0:02:42.1]} 14.
a5 {[%clk 0:02:14.2]} 14... Nc5 {[%clk 0:02:32.8]} 15. Be2 {[%clk 0:02:13.1]}
15... Nfe4 {[%clk 0:02:30.8]} 16. O-O {[%clk 0:02:07.4]} 16... g6 {[%clk
0:01:59.1]} 17. Nd2 {[%clk 0:01:49.3]} 17... e5 {[%clk 0:01:52.1]} 18. Nxe4
{[%clk 0:01:47.9]} 18... Bxe4 {[%clk 0:01:46.5]} 19. Nf3 {[%clk 0:01:42.6]}
19... f6 {[%clk 0:01:31.8]} 20. Bc4 {[%clk 0:01:17.7]} 20... Rd8 {[%clk
0:01:22.4]} 21. Ne1 {[%clk 0:00:58]} 21... Bd5 {[%clk 0:01:13.9]} 22. Bxd5
{[%clk 0:00:51.5]} 22... Rxd5 {[%clk 0:01:14.8]} 23. Nc2 {[%clk 0:00:50.3]}
23... Nd3 {[%clk 0:01:12.7]} 24. e4 {[%clk 0:00:45.2]} 24... Rc5 {[%clk
0:01:11.6]} 25. Ne3 {[%clk 0:00:41.8]} 25... Kf7 {[%clk 0:01:02.5]} 26. Rd1
{[%clk 0:00:39.4]} 26... Nf4 {[%clk 0:00:54.7]} 27. Bd2 {[%clk 0:00:34.8]} 27...
Rc7 {[%clk 0:00:44.5]} 28. Kf1 {[%clk 0:00:34.4]} 28... Bc5 {[%clk 0:00:32.3]}
29. Nc4 {[%clk 0:00:29]} 29... Nd3 {[%clk 0:00:27]} 0-1